bitfinex-derivatives/quotes_ETHF0:USTF0_20250905
["timestamp","ask_amount","ask_price","bid_price","bid_amount"]
[1757093033977,0.7166,4294.4,4294.3,3.2078]
[1757093034173,1.41201235,4294.4,4294.3,3.4438]
[1757093034664,1.41201235,4294.4,4294.3,3.575]
[1757093034869,0.7166,4294.4,4294.3,3.7062]
[1757093035066,0.7166,4294.4,4294.3,3.575]
[1757093037875,0.7166,4294.4,4294.3,3.4438]
[1757093040779,0.2979,4294.4,4294.3,3.7882]
[1757093042079,0.7166,4294.4,4294.3,3.7062]
[1757093043583,0.92564163,4294.4,4294.3,3.575]
[1757093043978,0.7166,4294.4,4294.3,3.575]
[1757093044980,0.7166,4294.4,4294.3,3.7062]
[1757093045182,0.3416,4295.0,4294.9,0.1312]
[1757093045482,1.03693514,4295.0,4294.9,3.7062]
[1757093045779,0.4253,4295.0,4294.9,3.7882]
[1757093045986,0.2142,4295.5,4295.4,0.7328]
[1757093046173,0.2142,4295.5,4295.4,0.9688]
[1757093047576,0.7721,4295.5,4295.2,0.236]
[1757093047779,0.5393,4295.5,4295.2,0.236]
[1757093047982,0.7166,4295.3,4295.2,0.4426]
[1757093048576,0.7166,4295.3,4295.2,0.6538]
[1757093049081,0.7166,4295.3,4295.2,0.9688]
[1757093049575,0.7166,4295.3,4295.2,0.6538]
[1757093049780,0.7166,4295.3,4294.9,3.4438]
[1757093049978,0.8372,4295.0,4294.9,0.236]
[1757093050174,1.53276377,4295.0,4294.9,0.236]
[1757093050375,0.2979,4294.9,4294.6,0.236]
[1757093050580,0.4187,4294.7,4294.6,0.236]
[1757093050777,0.7166,4294.7,4294.6,0.236]
[1757093050975,0.7166,4294.7,4294.6,0.4426]
[1757093051177,0.7166,4294.7,4294.6,0.2066]
[1757093052480,0.7166,4294.7,4294.5,0.236]
[1757093052777,0.69573494,4294.6,4294.5,0.236]
[1757093053082,1.41233494,4294.6,4294.5,0.236]
[1757093054487,1.41233494,4294.6,4294.5,0.4426]
[1757093054685,1.41233494,4294.6,4294.5,0.236]
[1757093056178,0.1206,4294.5,4294.4,3.2078]
[1757093056381,1.53293494,4294.5,4294.4,3.4438]
[1757093056978,1.53293494,4294.5,4294.4,3.6504]
[1757093057184,0.8372,4294.5,4294.4,3.6504]
[1757093057684,1.5329421,4294.5,4294.4,3.6504]
[1757093058087,1.5329421,4294.5,4294.4,3.4144]
[1757093058289,0.8372,4294.5,4294.4,3.8616]
[1757093059691,1.53292589,4294.5,4294.4,3.8616]
[1757093060381,1.53292589,4294.5,4294.4,3.4438]
[1757093060991,1.53292589,4294.5,4294.4,0.236]
[1757093062492,1.53292589,4294.5,4294.4,0.6367]
[1757093062690,1.53292589,4294.5,4294.4,0.4349]
[1757093064582,1.53292589,4294.5,4294.4,0.236]
[1757093072097,1.73540786,4294.5,4294.4,0.236]
[1757093072293,1.73540786,4294.5,4294.4,0.39493613]
[1757093072594,0.8369,4294.0,4293.9,3.6427]
[1757093072993,0.8369,4294.0,4293.9,0.4349]
[1757093073690,0.8369,4294.0,4293.9,0.9584]
[1757093073999,0.3077,4294.0,4293.9,0.9584]
[1757093074291,0.5137,4294.0,4293.9,0.9584]
[1757093074595,0.8369,4294.0,4293.9,0.236]
[1757093074797,0.8369,4294.0,4293.9,0.4349]
[1757093076797,0.8369,4294.0,4292.9,3.2078]
[1757093076798,0.1216,4293.0,4292.9,3.2078]
[1757093076995,0.8369,4293.0,4292.9,4.1662]
[1757093077184,0.1216,4293.5,4292.9,4.1662]
[1757093077383,1.30465429,4293.4,4293.3,0.4007]
[1757093077986,1.61235429,4293.4,4293.3,0.1989]
[1757093078189,0.8369,4293.0,4292.9,3.4067]
[1757093078490,0.236,4293.9,4293.1,0.3217]
[1757093078491,0.3077,4293.9,4293.1,0.3217]
[1757093078689,0.5137,4293.7,4293.6,0.7224]
[1757093078888,0.5137,4293.7,4293.6,0.9584]
[1757093079093,0.4076,4293.7,4293.1,0.236]
[1757093079290,0.7153,4293.6,4293.5,0.1989]
[1757093079496,0.7153,4293.6,4293.1,0.5577]
[1757093079803,0.1216,4294.0,4293.1,0.4349]
[1757093079804,0.7153,4293.2,4293.1,0.4349]
[1757093080099,0.7153,4293.2,4293.1,0.9584]
[1757093080401,0.5137,4293.2,4293.1,0.9584]
[1757093082801,0.7153,4293.2,4293.1,0.9584]
[1757093084096,0.5137,4293.2,4293.1,0.9584]
[1757093086198,0.3077,4293.9,4293.5,0.3917]
[1757093086398,0.69516447,4293.8,4293.7,0.7224]
[1757093086598,0.3077,4293.9,4293.8,0.3217]
[1757093086798,0.7153,4293.9,4293.8,0.4007]
[1757093087199,0.7153,4293.9,4293.8,0.7224]
[1757093087502,0.3077,4293.9,4293.8,0.7224]
[1757093087812,0.7153,4294.4,4294.3,0.1989]
[1757093087999,1.41059668,4294.4,4294.3,0.1989]
[1757093088200,1.41059668,4294.4,4294.3,0.7224]
[1757093088704,0.5137,4294.4,4294.3,0.7224]
[1757093089106,0.5137,4294.4,4294.3,0.9584]
[1757093089497,0.7155,4294.4,4294.3,0.9584]
[1757093089702,0.7155,4294.4,4294.3,0.236]
[1757093090501,0.7155,4294.4,4294.3,0.6483]
[1757093091704,0.7155,4294.4,4294.3,0.236]
[1757093093008,0.7155,4294.4,4294.3,0.4475]
[1757093093607,0.7155,4294.4,4294.3,0.9441]
[1757093093796,0.7155,4294.4,4294.3,0.6483]
[1757093094002,0.5137,4294.4,4294.3,0.9441]
[1757093098599,0.5029,4294.4,4294.3,0.9441]
[1757093098814,0.7047,4294.4,4294.3,0.9441]
[1757093100909,0.3126,4294.9,4294.3,0.6483]
[1757093101106,0.90058098,4294.8,4294.7,0.7081]
[1757093101313,0.1952,4294.9,4294.8,0.7081]
[1757093101604,0.5078,4294.9,4294.8,41.74091999]
[1757093101809,0.3126,4294.9,4294.8,41.5081]
[1757093102008,3.2078,4295.8,4294.8,41.5081]
[1757093102203,3.2078,4295.8,4294.7,0.236]
[1757093102204,0.3126,4295.4,4294.9,0.2958]
[1757093102404,0.7096,4295.4,4295.3,0.2115]
[1757093102805,0.3126,4295.4,4295.3,0.9441]
[1757093103004,3.2078,4296.3,4295.3,0.9441]
[1757093103005,0.3126,4295.9,4295.4,0.2958]
[1757093103205,0.7096,4295.9,4295.8,0.2115]
[1757093103403,1.40424513,4295.9,4295.8,0.2115]
[1757093103709,1.40424513,4295.9,4295.3,0.236]
[1757093103905,0.7096,4295.9,4295.3,0.236]
[1757093104211,3.2078,4296.3,4295.3,0.236]
[1757093104212,0.1246,4295.5,4295.4,0.2115]
[1757093104408,0.3198,4295.5,4295.4,0.7081]
[1757093104714,0.5216,4295.5,4295.4,0.7081]
[1757093104906,0.8342,4295.5,4295.4,0.7081]
[1757093105106,0.8342,4295.5,4295.4,0.4123]
[1757093106012,0.8342,4295.5,4295.3,0.236]
[1757093107116,0.7096,4294.7,4294.3,3.2078]
[1757093107308,0.7096,4294.7,4294.6,0.9441]
[1757093107515,0.7096,4294.7,4294.6,0.4475]
[1757093107716,0.7096,4294.7,4294.6,0.6483]
[1757093108013,0.7096,4294.7,4294.6,0.236]
[1757093108206,0.397,4293.8,4293.2,3.2078]
[1757093108403,0.5078,4293.9,4293.8,0.2115]
[1757093108611,0.5078,4293.9,4293.4,0.2958]
[1757093108612,0.7096,4293.9,4293.4,41.0958]
[1757093108913,0.4372,4293.5,4293.4,40.8]
[1757093109109,0.4372,4293.5,4293.4,41.0958]
[1757093110216,0.4372,4293.5,4292.7,3.2078]
[1757093110217,0.1246,4293.0,4292.7,3.2078]
[1757093110416,0.7096,4292.8,4292.7,3.2078]
[1757093110616,0.7096,4292.8,4292.7,44.9519]
[1757093111014,0.3126,4292.8,4292.7,44.9519]
[1757093111214,0.3126,4292.9,4292.8,0.7081]
[1757093111408,0.5078,4292.9,4292.8,0.7081]
[1757093112514,0.3126,4293.4,4292.9,0.2958]
[1757093112715,0.3126,4293.4,4293.3,3.9159]
[1757093112912,0.3126,4293.9,4293.8,0.4123]
[1757093113117,0.5078,4293.9,4293.8,0.7081]
[1757093113716,0.7096,4293.9,4293.8,0.7081]
[1757093115622,0.7096,4293.9,4293.7,0.236]
[1757093119527,0.397,4293.9,4293.8,0.2003]
[1757093120325,0.7071,4293.9,4293.8,0.2003]
[1757093120716,0.7071,4293.9,4293.7,0.236]
[1757093123923,0.7206,4293.4,4293.3,3.2078]
[1757093124120,0.7206,4293.4,4293.1,0.236]
[1757093124917,0.5247,4293.4,4293.3,0.4058]
[1757093125222,0.1246,4294.0,4293.3,0.6982]
[1757093125522,0.7206,4293.4,4293.3,0.6982]
[1757093126127,0.3101,4293.4,4293.3,0.6982]
[1757093126823,0.5247,4293.4,4293.3,0.6982]
[1757093127126,0.7206,4293.4,4293.3,0.4058]
[1757093127720,0.7206,4292.8,4292.7,3.2078]
[1757093127925,0.7206,4292.8,4292.7,3.4081]
[1757093128523,0.7206,4292.8,4292.7,3.6136]
[1757093128724,0.7206,4292.8,4292.7,3.906]
[1757093129020,0.7206,4292.8,4292.7,3.6136]
[1757093130226,0.7206,4292.8,4292.7,3.906]
[1757093131073,0.7206,4292.8,4292.7,3.6136]
[1757093132127,0.7206,4292.8,4292.7,3.906]
[1757093132328,3.3291,4293.5,4292.7,3.906]
[1757093132531,0.7206,4293.4,4293.3,0.2003]
[1757093132830,0.7206,4293.4,4293.3,0.6982]
[1757093133021,0.7206,4293.4,4293.3,0.9342]
[1757093133634,0.7206,4293.4,4293.3,0.6418]
[1757093135032,0.7206,4293.4,4293.3,0.236]
[1757093135535,0.7206,4293.4,4293.3,0.6418]
[1757093136535,0.3101,4293.4,4293.3,0.9342]
[1757093136925,0.3101,4293.9,4293.3,0.6418]
[1757093137129,0.5247,4293.8,4293.7,0.4058]
[1757093137431,0.5247,4293.8,4293.7,0.9342]
[1757093138030,1.41602131,4293.8,4293.7,0.9342]
[1757093138435,0.69542131,4293.8,4293.7,0.9342]
[1757093138627,1.41602131,4293.8,4293.7,0.6418]
[1757093139325,0.3101,4294.3,4293.7,4.142]
[1757093139528,0.5247,4294.3,4294.2,3.906]
[1757093140022,0.4347,4294.5,4294.2,3.6136]
[1757093140234,3.4438,4295.1,4294.4,0.2924]
[1757093140235,0.3101,4294.9,4294.4,0.2924]
[1757093140422,1.41683401,4294.8,4294.7,0.2003]
[1757093140737,1.41683401,4294.8,4294.7,0.4058]
[1757093141422,1.41683401,4294.8,4294.5,0.236]
[1757093141624,0.3101,4294.4,4294.2,3.2078]
[1757093141824,0.2146,4294.2,4294.1,0.236]
[1757093142030,0.5247,4294.2,4294.1,0.9342]
[1757093142230,0.7206,4294.2,4294.1,0.9342]
[1757093142430,0.7206,4294.2,4294.1,0.6418]
[1757093145733,0.2146,4294.3,4294.1,0.236]
[1757093146041,0.5247,4294.3,4294.2,0.6982]
[1757093147040,0.7206,4294.3,4294.2,0.6982]
[1757093147539,0.7206,4294.3,4294.2,0.4058]
[1757093147837,0.7206,4294.3,4294.1,0.236]
[1757093148934,0.7206,4294.3,4294.2,0.1964]
[1757093150435,0.7206,4294.3,4294.2,0.6972]
[1757093150636,0.7206,4294.3,4294.2,0.4023]
[1757093151339,0.7206,4294.3,4294.1,0.236]
[1757093156238,0.7206,4294.3,4294.2,0.1964]
[1757093158237,0.4018,4293.8,4293.7,3.4042]
[1757093158538,0.7089,4293.8,4293.7,0.4023]
[1757093158743,0.7089,4293.8,4293.7,0.6972]
[1757093159043,0.7089,4293.8,4293.7,0.4023]
[1757093159637,0.1174,4293.5,4293.2,3.2078]
[1757093159836,0.1174,4293.0,4292.5,3.5027]
[1757093160040,0.7089,4292.6,4292.5,3.6402]
[1757093160242,0.7089,4292.6,4292.5,44.4402]
[1757093161840,0.7089,4292.6,4292.5,3.6402]
[1757093162041,0.7089,4292.6,4292.5,0.236]
[1757093162236,3.3252,4293.0,4292.0,3.2078]
[1757093162237,0.4245,4292.5,4292.0,3.2078]
[1757093162438,0.7089,4292.1,4292.0,3.8461]
[1757093162632,0.7089,4292.1,4292.0,3.6402]
[1757093162838,0.7089,4292.1,4292.0,0.236]
[1757093163039,0.7089,4292.1,4292.0,0.4324]
[1757093163339,0.1174,4292.5,4292.0,3.9206]
[1757093163543,0.7089,4292.4,4292.3,0.4023]
[1757093163751,0.3071,4292.3,4292.0,3.4438]
[1757093163939,0.7089,4292.1,4292.0,3.4438]
[1757093164140,0.8263,4291.5,4291.4,0.9332]
[1757093164541,0.8263,4291.5,4291.4,0.6383]
[1757093165042,0.7089,4291.5,4291.4,0.9332]
[1757093165241,0.3071,4291.4,4291.0,3.2078]
[1757093165546,0.5137,4290.1,4290.0,3.905]
[1757093166542,0.7089,4290.1,4290.0,3.6101]
[1757093166839,0.7089,4290.1,4289.5,0.3967]
[1757093166840,0.8263,4289.5,4289.4,0.1964]
[1757093167142,0.3071,4289.4,4289.3,3.4448]
[1757093167344,0.7089,4289.4,4289.3,3.2078]
[1757093167838,0.2066,4288.9,4288.8,0.7283]
[1757093168142,0.7089,4288.9,4288.8,0.6393]
[1757093169040,0.7089,4288.9,4288.8,0.4023]
[1757093172038,0.1174,4289.5,4288.8,0.4023]
[1757093172242,0.7089,4289.4,4289.3,0.1964]
[1757093172443,0.7089,4289.4,4289.3,0.4023]
[1757093173245,0.7089,4289.4,4289.3,0.6972]
[1757093175044,0.7089,4290.3,4290.2,0.2059]
[1757093175248,0.7089,4290.3,4290.2,0.4023]
[1757093175449,0.7089,4290.3,4290.2,0.6972]
[1757093175753,0.5137,4290.3,4290.2,0.6972]
[1757093176248,0.7089,4290.3,4290.2,0.4023]
[1757093176453,0.1174,4290.0,4289.9,0.1964]
[1757093176642,0.3126,4290.0,4289.9,0.1964]
[1757093176847,0.5192,4290.0,4289.9,0.1964]
[1757093177051,0.8263,4290.0,4289.9,0.1964]
[1757093177949,0.8263,4290.0,4289.9,0.4023]
[1757093178155,0.1174,4290.5,4289.9,0.4023]
[1757093178451,0.6403,4290.5,4290.4,0.7248]
[1757093178750,0.3092,4290.9,4290.4,0.7248]
[1757093179050,0.5357,4291.0,4290.9,0.413]
[1757093179263,0.3311,4291.5,4291.4,0.7248]
[1757093179551,0.8449,4291.5,4291.4,0.413]
[1757093179741,0.8449,4291.5,4291.4,0.2]
[1757093180449,0.8449,4291.5,4291.4,0.413]
[1757093181650,0.5229,4291.5,4291.4,0.7248]
[1757093182445,0.8542,4291.5,4291.4,0.413]
[1757093182648,0.8542,4291.5,4291.3,3.4448]
[1757093182649,0.7275,4291.4,4291.3,3.6448]
[1757093183146,0.7275,4291.4,4291.3,3.8578]
[1757093186254,0.1174,4292.0,4291.3,4.1696]
[1757093186451,0.5229,4291.4,4291.3,4.1696]
[1757093186647,0.1174,4292.0,4291.3,4.1696]
[1757093187051,0.2137,4291.4,4291.3,4.1696]
[1757093187246,0.5229,4291.4,4291.3,4.1696]
[1757093187457,0.7275,4291.4,4291.3,3.8578]
[1757093188553,0.7275,4291.4,4291.3,4.1696]
[1757093189152,0.5229,4291.4,4291.3,4.1696]
[1757093192259,0.4183,4290.9,4290.3,3.5196]
[1757093192461,0.8542,4290.5,4290.4,0.88204999]
[1757093192763,0.5229,4290.5,4290.4,0.9608]
[1757093193153,0.3092,4290.9,4290.4,0.9608]
[1757093193351,0.2137,4290.6,4290.4,0.236]
[1757093193558,0.7275,4290.6,4290.5,0.7248]
[1757093193857,0.2137,4289.8,4289.7,3.9326]
[1757093194057,0.5229,4289.8,4289.7,44.9696]
[1757093194260,0.3092,4290.4,4289.7,44.9696]
[1757093194460,0.3092,4290.2,4289.7,45.15867747]
[1757093194651,0.69138522,4290.1,4290.0,0.7248]
[1757093194855,0.69138522,4290.1,4290.0,0.9618]
[1757093195054,3.517,4290.8,4290.0,1.064]
[1757093195257,0.7275,4290.6,4290.5,0.2]
[1757093195459,0.8542,4290.5,4290.4,0.237]
[1757093195666,1.5455797,4290.5,4290.4,0.237]
[1757093197856,1.2142797,4290.5,4290.4,0.9618]
[1757093198065,0.6913797,4290.5,4290.4,0.9618]
[1757093198266,0.5229,4290.5,4290.4,0.9618]
[1757093198559,1.2142797,4290.5,4290.4,0.9618]
[1757093199063,1.5455797,4290.5,4290.4,0.9618]
[1757093199263,1.5455797,4290.5,4290.4,0.65]
[1757093199672,1.5455797,4290.5,4290.4,0.437]
[1757093199861,1.5455797,4290.5,4290.4,0.65]
[1757093200060,1.5455797,4290.5,4290.4,0.9618]
[1757093201165,0.6913797,4290.5,4290.4,0.9618]
[1757093201366,0.6913797,4290.5,4290.4,0.65]
[1757093201563,0.5229,4290.7,4290.6,0.7248]
[1757093201870,0.69264597,4290.7,4290.6,0.9608]
[1757093202065,0.69264597,4291.0,4290.6,0.9608]
[1757093202369,1.54684597,4291.0,4290.9,0.7248]
[1757093203360,1.54684597,4291.0,4290.9,0.413]
[1757093203559,1.54684597,4291.0,4290.9,0.2]
[1757093204367,1.54684597,4291.0,4290.8,0.236]
[1757093204570,1.11094597,4290.9,4290.8,0.236]
[1757093204772,1.42014597,4290.9,4290.8,0.236]
[1757093204970,1.42014597,4290.9,4290.8,0.436]
[1757093205669,1.6652842,4293.6,4293.0,0.41925]
[1757093205863,0.1267,4295.5,4293.5,3.2078]
[1757093205864,0.3092,4294.3,4293.5,3.2078]
[1757093206066,0.1267,4295.0,4294.2,3.2078]
[1757093206261,0.1267,4295.0,4294.7,3.2078]
[1757093206462,0.1267,4295.0,4294.8,0.04131523]
[1757093206669,0.1267,4294.5,4294.4,3.2078]
[1757093206973,0.1267,4294.5,4294.4,3.553154]
[1757093207269,0.1267,4294.5,4294.4,0.345354]
[1757093207270,4.1267,4294.5,4294.4,0.345354]
[1757093207770,4.0,4294.5,4294.4,0.345354]
[1757093208261,0.3936,4294.5,4294.4,0.345354]
[1757093208466,0.3936,4294.5,4294.4,3.553154]
[1757093208669,0.243,4294.5,4294.4,3.7637182]
[1757093210368,0.243,4294.5,4294.4,4.0630182]
[1757093211167,0.1506,4294.9,4294.4,4.0630182]
[1757093211372,0.1506,4294.7,4294.5,0.5559182]
[1757093211571,0.1506,4294.7,4294.6,0.57456491]
[1757093212377,0.5649,4294.7,4294.6,0.57456491]
[1757093215583,0.5649,4294.7,4294.6,0.36400071]
[1757093217381,4.5649,4294.7,4294.6,0.36400071]
[1757093218183,4.5649,4294.7,4294.0,0.4538]
[1757093218380,0.5649,4294.7,4294.1,0.91376868]
[1757093218595,0.5649,4294.7,4294.3,0.2993]
[1757093218885,0.5649,4294.7,4294.0,0.1545]
[1757093218886,0.5649,4294.7,4294.6,0.2993]
[1757093219085,0.5649,4294.7,4294.6,0.66276711]
[1757093219281,0.1506,4294.0,4293.9,3.2078]
[1757093219485,0.8069,4294.0,4293.9,3.87050996]
[1757093219685,0.8069,4294.0,4293.9,0.66270996]
[1757093220590,0.6563,4294.0,4293.9,0.86480996]
[1757093223395,0.6563,4294.0,4293.9,1.40013352]
[1757093224897,3.2078,4294.7,4294.5,0.8589]
[1757093224898,0.2031,4294.6,4294.5,0.8589]
[1757093225192,0.6563,4294.6,4294.5,1.42432852]
[1757093225391,0.8069,4294.6,4294.5,0.56542852]
[1757093225590,0.8069,4294.6,4294.5,0.3557233]
[1757093225800,0.8069,4294.6,4294.5,0.56558056]
[1757093225991,4.8069,4294.6,4294.5,0.3557233]
[1757093226192,4.8069,4294.6,4294.5,0.56563275]
[1757093227299,4.8069,4294.6,4294.5,1.01943275]
[1757093227689,4.8069,4294.6,4294.5,0.41503275]
[1757093227896,4.8069,4294.6,4293.5,0.1186]
[1757093227897,4.6563,4294.6,4293.7,0.2993]
[1757093228092,0.6563,4294.6,4293.8,0.3261401]
[1757093228290,0.6563,4294.6,4293.9,0.3261401]
[1757093228485,0.6563,4294.6,4293.7,0.2993]
[1757093228486,0.6563,4294.6,4294.0,0.3261401]
[1757093228700,0.6563,4294.6,4294.1,0.3261401]
[1757093228999,0.6563,4294.6,4294.2,0.3261401]
[1757093229185,0.6563,4294.6,4293.9,0.2993]
[1757093229186,0.6563,4294.6,4294.0,0.1545]
[1757093229386,0.6563,4294.6,4294.1,0.32645824]
[1757093229592,0.6563,4294.6,4294.2,0.32645824]
[1757093229792,0.6563,4294.6,4294.0,0.1545]
[1757093229990,0.6563,4294.6,4294.1,0.32651091]
[1757093230191,0.6563,4294.6,4294.2,0.32669375]
[1757093230387,3.2078,4294.2,4293.9,0.2993]
[1757093230597,0.241,4294.1,4294.0,0.98264662]
[1757093230793,3.2078,4295.0,4294.1,0.7044]
[1757093230995,0.241,4294.9,4294.6,0.2993]
[1757093231397,0.241,4294.9,4294.5,0.3566]
[1757093231589,0.241,4294.9,4294.6,0.2993]
[1757093231799,3.2078,4295.0,4294.6,0.2993]
[1757093232098,0.241,4294.9,4294.5,0.1545]
[1757093232401,0.241,4294.9,4294.7,0.2993]
[1757093234198,4.241,4294.9,4294.0,0.3566]
[1757093234399,3.2078,4294.4,4294.2,0.2993]
[1757093234594,0.241,4294.3,4294.2,0.2021]
[1757093234803,0.241,4294.3,4294.2,1.0134772]
[1757093236302,3.2078,4295.0,4294.9,0.2021]
[1757093236505,3.4488,4295.0,4294.9,0.8104772]
[1757093237206,3.2078,4295.0,4294.9,0.7044]
[1757093237503,3.2078,4295.0,4294.9,0.5014]
[1757093237504,3.4488,4295.0,4294.9,0.5014]
[1757093237704,3.4488,4295.0,4294.9,0.2993]
[1757093238408,3.4488,4295.0,4294.9,0.5014]
[1757093239499,3.4488,4295.0,4294.9,0.2993]
[1757093239700,3.4488,4295.0,4294.6,0.3603]
[1757093239899,3.4488,4295.0,4294.7,0.98521437]
[1757093240100,3.4488,4295.0,4294.8,0.68653619]
[1757093240301,3.4488,4295.0,4294.9,0.32623619]
[1757093242704,3.4488,4295.0,4294.9,0.68653619]
[1757093242909,3.4488,4295.0,4294.9,1.17972074]
[1757093243111,3.4488,4295.0,4294.9,0.91702074]
[1757093243304,3.4488,4295.0,4294.9,0.3603]
[1757093244308,3.4488,4295.0,4294.6,0.3603]
[1757093244504,3.4488,4295.0,4294.7,0.6183]
[1757093244709,3.2078,4295.0,4294.8,0.3603]
[1757093244909,0.24,4294.9,4294.7,0.3603]
[1757093245212,0.24,4294.8,4294.6,0.258]
[1757093245408,0.24,4294.8,4294.7,0.3603]
[1757093245617,0.24,4294.8,4294.6,0.258]
[1757093245809,0.24,4294.8,4294.7,0.3603]
[1757093247314,4.60423459,4294.8,4294.7,0.3603]
[1757093247514,0.73823459,4294.8,4294.7,0.3603]
[1757093247715,0.73823459,4294.8,4294.7,0.6183]
[1757093250414,0.93446425,4294.8,4294.7,0.6183]
[1757093252212,0.69446425,4294.8,4294.7,0.881]
[1757093252415,0.93446425,4294.8,4294.7,0.881]
[1757093257317,0.69446425,4294.8,4294.7,0.881]
[1757093257525,0.93446425,4294.8,4294.7,0.881]
[1757093258123,0.93446425,4294.8,4294.7,0.3603]
[1757093258915,0.4884,4294.1,4294.0,0.4125]
[1757093259116,0.4884,4294.1,4293.4,3.2078]
[1757093259117,4.97896425,4294.1,4293.4,4.45509637]
[1757093259320,4.97896425,4294.1,4293.0,0.1031]
[1757093259321,0.8367,4293.6,4293.0,1.35039637]
[1757093259626,0.2456,4293.1,4293.0,0.6238]
[1757093259826,0.68182966,4293.1,4293.0,0.6238]
[1757093260618,1.27292966,4293.1,4293.0,0.6238]
[1757093260929,1.27292966,4293.1,4292.6,0.3603]
[1757093260930,1.78865517,4293.1,4292.6,0.3603]
[1757093261223,3.4534,4292.7,4292.6,0.881]
[1757093261525,3.88962966,4292.7,4292.6,0.881]
[1757093263823,0.68182966,4292.7,4292.6,0.881]
[1757093266928,0.43622966,4292.7,4292.6,0.881]
[1757093268523,0.67512966,4292.7,4292.6,0.881]
[1757093268827,1.27092966,4292.7,4292.6,0.881]
[1757093269127,1.27092966,4292.7,4292.6,0.6183]
[1757093270824,4.47872966,4292.7,4292.6,0.3603]
[1757093271021,4.47872966,4292.7,4292.1,0.3851]
[1757093271223,0.8347,4292.2,4292.1,0.6259]
[1757093271424,1.26992966,4292.2,4292.1,0.3851]
[1757093272626,4.47772966,4292.2,4292.1,0.3851]
[1757093272827,4.47772966,4292.2,4292.1,0.6259]
[1757093275133,3.40402966,4292.2,4292.1,0.8872]
[1757093275336,3.64302966,4292.2,4292.1,0.8872]
[1757093275734,0.43522966,4292.2,4292.1,0.8872]
[1757093276523,0.19622966,4292.2,4292.1,0.8872]
[1757093276736,3.2078,4292.8,4292.1,0.8872]
[1757093276937,0.67288936,4292.7,4292.6,0.8872]
[1757093277730,0.43398936,4292.7,4292.6,0.8872]
[1757093278342,0.67288936,4292.7,4292.6,0.8872]
[1757093279134,0.92758936,4292.7,4292.6,0.8872]
[1757093280530,0.7326,4292.7,4292.6,0.8872]
[1757093281134,0.4779,4292.7,4292.6,0.8872]
[1757093281334,0.2389,4292.7,4292.6,0.8872]
[1757093281734,3.2078,4292.8,4292.7,0.3851]
[1757093281935,3.4468,4292.8,4292.7,0.8872]
[1757093282131,3.2078,4293.3,4293.0,0.1413]
[1757093282328,3.2078,4293.3,4293.2,0.8872]
[1757093282734,3.6857,4293.3,4293.2,0.8872]
[1757093283636,3.4468,4293.3,4293.2,0.8872]
[1757093284338,3.6857,4293.3,4293.2,0.8872]
[1757093286143,4.2815,4293.3,4293.2,0.8872]
[1757093286440,4.2815,4293.3,4293.2,0.6259]
[1757093287042,0.4936,4292.6,4292.5,0.3821]
[1757093287342,0.7326,4292.6,4292.5,0.3821]
[1757093287542,0.7326,4292.6,4292.5,1.0285]
[1757093288237,1.0737,4292.6,4292.5,1.0285]
[1757093288440,0.8347,4292.1,4292.0,0.7794]
[1757093288635,3.9404,4292.1,4291.5,0.1535]
[1757093288939,0.4936,4291.7,4291.6,0.8872]
[1757093289144,1.0737,4291.7,4291.6,0.8872]
[1757093289342,1.0737,4291.7,4291.6,0.6259]
[1757093291630,1.0737,4291.7,4291.6,0.3851]
[1757093292037,0.7326,4291.7,4291.6,0.8872]
[1757093293239,1.0737,4291.7,4291.6,0.8872]
[1757093294844,0.7326,4291.7,4291.6,0.8872]
[1757093295043,3.2078,4292.1,4292.0,0.1413]
[1757093295342,3.6847,4292.1,4292.0,1.0285]
[1757093295938,0.4769,4292.1,4292.0,1.0285]
[1757093296844,0.3411,4292.5,4292.0,0.6434]
[1757093297042,0.239,4292.1,4292.0,1.0285]
[1757093297340,3.7014,4292.6,4292.5,0.7672]
[1757093297535,4.45518251,4292.6,4292.5,0.7672]
[1757093297741,4.79628251,4292.6,4292.5,0.7672]
[1757093298136,4.79628251,4292.6,4292.0,0.1413]
[1757093298338,0.8297,4292.2,4292.1,0.6386]
[1757093298541,1.0677,4292.2,4292.1,0.6386]
[1757093299638,0.74,4292.2,4292.1,0.8906]
[1757093299940,1.0677,4292.2,4292.1,0.6386]
[1757093301140,1.0677,4292.2,4292.1,0.3822]
[1757093301344,1.58334135,4292.2,4291.5,0.1535]
[1757093301543,0.2463,4291.7,4291.6,0.8906]
[1757093301748,0.4843,4291.7,4291.6,0.8906]
[1757093302440,0.74,4291.7,4291.6,0.8906]
[1757093302646,1.0677,4291.7,4291.6,0.8906]
[1757093303345,0.74,4291.7,4291.6,0.8906]
[1757093305346,1.0651,4291.7,4291.6,0.8906]
[1757093306347,0.74,4291.7,4291.6,0.8906]
[1757093309855,0.4843,4291.7,4291.6,0.8906]
[1757093310150,0.4843,4291.7,4291.5,0.1535]
[1757093310151,3.2078,4292.0,4291.9,0.8906]
[1757093310451,3.6921,4292.0,4291.9,0.8906]
[1757093310850,3.9478,4292.0,4291.9,0.8906]
[1757093311053,4.2729,4292.0,4291.9,0.3822]
[1757093311253,4.79418481,4292.0,4291.9,0.3822]
[1757093311449,4.2729,4292.0,4291.9,0.6386]
[1757093311754,4.2729,4292.0,4291.9,0.3822]
[1757093313050,4.79419549,4292.0,4291.9,0.3822]
[1757093313248,4.79438382,4292.0,4291.9,0.3822]
[1757093313452,4.79438382,4292.0,4291.9,0.6386]